Cogmind - Beta 10.2 @@@ ROGUE MODE // 2022.02.13 @ 02:18:51 Player: KeepAwake2 Result: Destroyed by P-80 Master with Gamma Rifle Performance ------------- Evolutions (7) 3500 Regions Visited (23) 4600 Robots Destroyed (363) 1815 Value Destroyed (15611) 15611 Prototype IDs (43) 860 Alien Tech Used (0) 0 Bonus (5429) 5429 TOTAL SCORE: 31815 Bonus ------- High Alert Combat Kills 2506 Follower Combat Kills 2519 Network Hubs Disabled 200 Aligned with FarCom 300 Met Data Miner 300 Met Imprinter 300 Met Zhirov 300 Read Decrypted Archives 300 Friendly Fire -1296 Cogmind --------- Core Integrity 0/1300 Matter 74/300 Energy 847/900 System Corruption 3% Temperature Cool (0) Movement Core (50) Location -3/Research Parts ------- > --- POWER (2) -------- (None) > --- PROPULSION (5) --- (None) > --- UTILITY (9) ------ Advanced Energy Well Experimental Signal Interpreter > --- WEAPON (5) ------- (None) > --- INVENTORY (4) ---- Particle Reactor High-capacity Storage Unit Triangulator Improved System Restoration Module Peak State ------------ > --- POWER ------------ Light Antimatter Reactor Particle Reactor > --- PROPULSION ------- Biometal Medium Treads Advanced Heavy Treads Improved Heavy Siege Treads > --- UTILITY ---------- Advanced Cryofiber Web Medium Storage Unit Large Storage Unit Advanced Energy Well Experimental Signal Interpreter Advanced Targeting Computer Advanced Armor Integrity Analyzer Quantum Capacitor > --- WEAPON ----------- Gamma Rifle Heavy Disruptor Cannon Nova Cannon Linear Accelerator > --- INVENTORY -------- Micro Fission Core Micro Fission Core Light Antimatter Reactor Centrium Heavy Treads Improved Antigrav System Experimental Power Amplifier Advanced Heat Sink Triangulator Advanced Dynamic Insulation System Improved System Restoration Module Precision Phase Gun Fusion Bomb Launcher Fusion Bomb Launcher [Rating: 151] Favorites ----------- Power Heavy Ion Engine Engine Heavy Ion Engine Power Core Micro Fission Core Reactor Light Antimatter Reactor Propulsion Improved Titanium Leg Treads Advanced Heavy Treads Leg Improved Titanium Leg Hover Unit Cooled Aerolev Unit Flight Unit Nuclear Pulse Array Utility Large Storage Unit Device Improved Maneuvering Thrusters Storage Large Storage Unit Processor Advanced Targeting Computer Hackware Makeshift Hacking Suite Protection Centrium Medium Armor Plating Weapon XL Autogun Array Energy Gun Heavy Beamcaster Energy Cannon Cooled Particle Cannon Ballistic Gun XL Autogun Array Ballistic Cannon Bore Cannon Launcher Grenade Launcher Special Weapon Enhanced Flamer Slashing Weapon Plasma Sword Piercing Weapon CR-A16's Pointy Stick Build | -11 -10 -9 -9 -9 -8 -8 -7 -7 -7 -7 -6 -6 -6 -6 -6 -5 -5 -4 -4 -4 -4 -4 -3 ------- Run | Scr Mat Mat Min Exi Min Mat Fac Low Low Dat Pro Fac Low Low Zio Pro Fac Fac Ext Cet Arc Hub Res Slots Evolved 14 | . . 2 . . . 2 2 . . . . 2 . . . . 2 2 . . . . 2 Power 1 | . . . . . . . . . . . . . . . . . 1 . . . . . . Propulsion 3 | . . 2 . . . . . . . . . . . . . . . 1 . . . . . Utility 7 | . . . . . . . 2 . . . . 1 . . . . 1 1 . . . . 2 Weapon 3 | . . . . . . 2 . . . . . 1 . . . . . . . . . . . Parts Attached 396 | 6 4 4 5 5 . 15 11 3 1 . 1 38 4 11 6 . 57 38 44 24 5 46 68 Power 43 | 1 . . 1 . . 2 1 . . . 1 3 . 1 . . 7 5 6 3 1 4 7 Engine 12 | 1 . . 1 . . 2 1 . . . 1 1 . . . . 4 1 . . . . . Core 16 | . . . . . . . . . . . . 1 . 1 . . 3 3 2 1 . 4 1 Reactor 15 | . . . . . . . . . . . . 1 . . . . . 1 4 2 1 . 6 Propulsion 98 | 2 2 2 . 1 . 7 4 2 1 . . 13 . 2 2 . 9 9 16 4 2 3 17 Treads 25 | . . . . . . . . . . . . . . . . . 6 4 1 2 1 2 9 Leg 44 | 2 . . . . . 7 4 2 1 . . 5 . . . . . 3 15 2 1 1 1 Wheel . | . . . . . . . . . . . . . . . . . . . . . . . . Hover 24 | . 2 2 . 1 . . . . . . . 8 . 2 2 . . . . . . . 7 Flight 5 | . . . . . . . . . . . . . . . . . 3 2 . . . . . Utility 152 | 1 1 . 1 3 . 2 6 1 . . . 18 . 6 . . 24 14 14 9 2 27 23 Device 87 | . . . . 1 . . 1 1 . . . 7 . 2 . . 18 11 7 4 1 22 12 Storage 25 | 1 1 . . 1 . 1 1 . . . . 5 . 1 . . 3 2 2 1 . . 6 Processor 16 | . . . . . . 1 3 . . . . 1 . 1 . . 1 . 4 1 . 1 3 Hackware 5 | . . . . . . . . . . . . 2 . . . . 1 . . . . 2 . Protection 19 | . . . 1 1 . . 1 . . . . 3 . 2 . . 1 1 1 3 1 2 2 Artifact . | . . . . . . . . . . . . . . . . . . . . . . . . Weapon 103 | 2 1 2 3 1 . 4 . . . . . 4 4 2 4 . 17 10 8 8 . 12 21 Energy Gun 32 | 1 . . . . . . . . . . . . . . 1 . 6 6 4 3 . 2 9 Energy Cannon 30 | . . 2 1 1 . 1 . . . . . 4 . 1 . . 7 1 1 1 . 6 4 Ballistic Gun 16 | 1 . . . . . 2 . . . . . . 1 1 1 . 2 . 1 3 . . 4 Ballistic Cannon 8 | . . . . . . . . . . . . . . . . . 1 2 . . . 3 2 Launcher 10 | . 1 . 2 . . 1 . . . . . . 1 . . . 1 . 2 . . . 2 Special Weapon 1 | . . . . . . . . . . . . . . . 1 . . . . . . . . Impact Weapon . | . . . . . . . . . . . . . . . . . . . . . . . . Slashing Weapon 4 | . . . . . . . . . . . . . 2 . . . . 1 . 1 . . . Piercing Weapon 2 | . . . . . . . . . . . . . . . 1 . . . . . . 1 . Special Melee Weapon . | . . . . . . . . . . . . . . . . . . . . . . . . Unidentified Prototypes 29 | . . . . 2 . 2 . . . . . 7 . . . . 3 1 . 6 2 3 3 Parts Lost 84 | . . 2 . . . . . . . . . 2 3 2 . . 8 5 7 7 7 11 30 Power 8 | . . . . . . . . . . . . . . . . . . 1 1 1 1 1 3 Propulsion 15 | . . . . . . . . . . . . . . . . . . . 1 1 2 2 9 Utility 16 | . . . . . . . . . . . . . . . . . 3 1 1 . 1 3 7 Weapon 45 | . . 2 . . . . . . . . . 2 3 2 . . 5 3 4 5 3 5 11 Highest Loss Streak 16 | . . 2 . . . . . . . . . 1 2 2 . . 2 4 5 3 7 6 16 Average Slot Usage (%) 80 | . 85 86 96 96 100 72 75 76 76 76 76 71 69 84 96 100 85 72 88 84 78 80 81 Engine 4 | . 14 11 11 11 11 9 7 7 7 7 7 4 6 2 . . 4 . . . . . . Core 2 | . . . . . . . . . . . . . . 3 6 6 4 6 5 4 5 5 5 Reactor 1 | . . . . . . . . . . . . . . . . . . 1 4 5 3 4 3 Treads 3 | . . . . . . . . . . . . . . . . . 9 6 3 8 9 12 9 Leg 13 | . 7 . . . . 35 30 30 30 30 30 9 . . . . . 6 22 6 5 3 . Hover 5 | . 20 44 44 44 44 . . . . . . 15 26 26 26 26 1 . . . . . 2 Device 7 | . . . . . . . . 5 7 7 7 6 6 9 6 6 12 11 9 5 6 7 11 Storage 9 | . 14 11 11 11 11 9 7 7 7 7 7 7 13 15 20 20 11 6 6 10 10 10 9 Processor 9 | . . . . . . 8 19 17 15 15 15 6 . . 6 6 2 5 9 12 13 10 14 Hackware 1 | . . . . . . . . . . . . 2 . . . . 4 5 3 . . 5 . Protection 1 | . . . 7 10 11 . 1 . . . . 2 . 5 . . . 2 . 7 4 1 2 Energy Gun 2 | . 14 4 . . . . . . . . . . . . 2 6 3 5 7 8 5 6 4 Energy Cannon 3 | . . 11 17 8 11 . . . . . . 5 . 5 6 6 9 . 1 2 . 7 3 Ballistic Gun 5 | . 5 . . . . 8 7 7 7 7 7 6 5 5 10 6 5 . 3 9 8 . 2 Ballistic Cannon 1 | . . . . . . . . . . . . . . . . . 2 3 1 . . 2 5 Naked Turns . | . . . . . . . . . . . . . . . . . . . . . . . . Heaviest Build 133 | 11 18 21 22 21 21 39 47 41 41 41 48 84 62 55 54 54 108 76 101 118 99 126 133 Greatest Support 190 | 20 20 32 24 24 22 80 78 78 78 78 78 88 81 81 58 58 140 120 115 160 160 190 180 Greatest Overweight (x) 4 | 2 1 1 . . . 1 . . . . . 2 1 . 1 . 1 1 1 1 . 4 3 Average Overweight (x) . | . . . . . . . . . . . . . . . . . . . . . . . . Largest Inventory Capacity 20 | 6 10 8 8 8 8 10 10 10 10 10 10 14 12 12 12 12 20 10 16 16 16 16 18 Average Capacity 11 | 4 6 8 8 8 8 8 10 10 10 10 10 10 12 12 12 12 12 9 11 16 16 16 13 Most Carried 16 | 2 8 8 7 8 8 10 10 10 10 10 10 14 12 12 12 12 12 10 16 16 16 16 15 Average Carried 10 | 1 5 5 5 6 8 8 9 9 9 10 9 10 11 10 11 12 11 8 10 15 15 14 12 Final Capacity 16 | 6 8 8 8 8 8 10 10 10 10 10 10 12 12 12 12 12 8 10 16 16 16 16 4 Final Carried 16 | 2 8 5 6 8 8 10 10 10 10 10 10 12 12 12 12 12 8 10 16 16 12 14 4 Class Distribution -------------------- 28% | Gunner 14% | Scavenger-Mutant 13% | Mutant 10% | Scavenger-Gunner 9% | Skirmisher 5% | Derelict-Mutant 3% | Derelict-Skirmisher 3% | Derelict-Tank Dominant Class ---------------- Mutant | -10/Materials Mutant | -9/Materials Mutant | -9/Mines Mutant | -9/Exiles Mutant | -8/Mines Skirmisher | -8/Materials Gunner | -7/Factory Gunner | -7/Lower Caves Gunner | -7/Lower Caves Gunner | -7/Data Miner Gunner | -6/Proximity Caves Mutant | -6/Factory Mutant | -6/Lower Caves Mutant | -6/Lower Caves Derelict-Mutant | -6/Zion Derelict-Tank | -5/Proximity Caves Derelict-Mutant | -5/Factory Scavenger-Mutant | -4/Factory Scavenger-Mutant | -4/Extension Scavenger-Gunner | -4/Cetus Scavenger-Gunner | -4/Archives Scavenger-Mutant | -4/Hub_04(d) Scavenger-Mutant | -3/Research Resources | -11 -10 -9 -9 -9 -8 -8 -7 -7 -7 -7 -6 -6 -6 -6 -6 -5 -5 -4 -4 -4 -4 -4 -3 ----------- Run | Scr Mat Mat Min Exi Min Mat Fac Low Low Dat Pro Fac Low Low Zio Pro Fac Fac Ext Cet Arc Hub Res Matter Collected 14045 | 215 50 121 62 142 30 1100 1262 319 445 . 580 3070 347 148 55 27 1834 641 742 482 61 892 1420 Remotely . | . . . . . . . . . . . . . . . . . . . . . . . . Salvage Created 17320 | . 67 252 117 . 83 1257 1210 361 434 . 917 1962 165 146 . . 3088 667 668 1556 141 1573 2656 Parts 803 | . 8 17 12 . 3 79 59 12 13 . 36 73 10 3 . . 140 42 30 60 9 69 128 Haulers Intercepted 22 | . . . . . . 2 4 . . . . 3 . . . . 4 2 1 . . 5 1 Recyclers Shooed 6 | . . . . . . . 1 . . . . 2 . . . . 1 1 1 . . . . Parts Field Recycled 41 | . . . . . . . . . . . . 41 . . . . . . . . . . . Retrieved Matter 380 | . . . . . . . . . . . . 380 . . . . . . . . . . . Parts Self-Destructed 104 | . . . . . . . . 13 18 . 48 . 12 9 . 4 . . . . . . . Prevented 13 | . . . . . . . . 7 . . . . 2 . . 4 . . . . . . . Kills | -11 -10 -9 -9 -9 -8 -8 -7 -7 -7 -7 -6 -6 -6 -6 -6 -5 -5 -4 -4 -4 -4 -4 -3 ------- Run | Scr Mat Mat Min Exi Min Mat Fac Low Low Dat Pro Fac Low Low Zio Pro Fac Fac Ext Cet Arc Hub Res Combat Hostiles Destroyed 257 | . 4 8 6 . 3 17 12 7 6 . 18 21 8 5 . . 41 10 7 25 2 23 34 Melee 4 | . . . . . . . . . . . . . . 2 . . 1 . . . . . 1 Guns 138 | . . 1 . . . 17 12 6 6 . 18 16 4 . . . 12 2 4 18 2 5 15 Cannons 76 | . . . 3 . 1 . . . . . . 5 2 3 . . 23 5 . 4 . 15 15 AOE 30 | . 4 6 3 . 2 . . 1 . . . . 2 . . . 5 3 2 . . . 2 Classes Destroyed 16 | . 3 2 . . 1 5 2 . . . 1 1 . . . . 1 . . . . . . Worker 19 | . . . . . . 2 3 . . . . 1 . . . . 4 2 2 . . 3 2 Builder 16 | . . 1 . . . 3 . . . . . 2 . . . . 3 2 1 . . 1 3 Hauler 22 | . . . . . . 2 4 . . . . 3 . . . . 4 2 1 . . 5 1 Recycler 11 | . . . . . . . 3 . . . . 2 . . . . 1 . 1 . . . 4 Carrier 1 | . . . . . . . . . . . . . . . . . 1 . . . . . . Mechanic 1 | . . . . . . 1 . . . . . . . . . . . . . . . . . Operator 3 | . . . . . . . . . . . . 1 . . . . . . . . . 1 1 Watcher 29 | . 2 1 . . . 5 2 . . . . 4 . . . . 4 2 . 1 . 3 5 Swarmer 63 | . 3 . 4 . . . . 1 . . 4 7 6 4 . . 6 3 1 8 . 3 13 Grunt 90 | . 1 7 1 . 2 9 3 2 4 . 5 10 . 1 . . 16 1 3 13 2 4 6 Brawler 7 | . . . . . 1 . . 2 1 . 1 1 . . . . . . . . . 1 . Duelist 13 | . . 1 1 . . 2 . 1 1 . 4 . . . . . . . . 1 . 2 . Sentry 29 | . . . . . . 4 4 1 . . 2 3 . . . . 3 . 2 . . 4 6 Demolisher 1 | . . . . . . . . . . . 1 . . . . . . . . . . . . Hunter 14 | . . . . . . 2 . . . . . . 2 . . . 5 2 . . . 2 1 Programmer 41 | . . . . . . . 5 . 1 . 1 3 . . . . 11 4 1 . . 7 8 Cetus Guard 3 | . . . . . . . . . . . . . . . . . . . . 3 . . . Best Kill Streak 13 | . 6 10 4 . 3 10 3 4 5 . 5 7 4 2 . . 13 6 3 13 2 4 7 Combat Bots Only 13 | . 4 8 4 . 3 5 2 4 5 . 5 4 4 2 . . 9 3 2 13 2 3 4 Max Kills in Single Turn 4 | . 2 2 3 . 1 2 1 1 1 . 1 2 1 1 . . 4 4 2 2 2 3 3 Gunslinging 1 | . . . . . . . . . . . . . . . . . . . . 1 . . . Exploded 3 | . 2 2 3 . 1 . . 1 . . . . 1 . . . 3 3 1 . . . 1 Melee 1 | . . . . . . . . . . . . . . 1 . . 1 . . . . . 1 Uniques/NPCs Destroyed . | . . . . . . . . . . . . . . . . . . . . . . . . Combat | -11 -10 -9 -9 -9 -8 -8 -7 -7 -7 -7 -6 -6 -6 -6 -6 -5 -5 -4 -4 -4 -4 -4 -3 -------- Run | Scr Mat Mat Min Exi Min Mat Fac Low Low Dat Pro Fac Low Low Zio Pro Fac Fac Ext Cet Arc Hub Res Damage Taken 24668 | . 46 262 69 . 16 288 376 193 89 . 394 401 772 375 . 27 3238 1522 1565 2770 1602 2952 7711 Core 2811 | . 7 46 55 . . 30 57 . . . 62 42 76 112 . 10 350 99 91 116 231 107 1320 Absorbed by Shields 1807 | . . . . . . . . . . . . 9 . 196 . 28 977 378 148 71 . . . Reduced by Siege Mode 111 | . . . . . . . . . . . . . . . . . . . . . . . 111 Core Remaining (%) 78 | 100 97 . . . 74 94 . . . . 83 . . . . 71 65 . . . . 44 . Volleys Fired 989 | . 6 13 9 . 4 64 70 27 21 . 38 93 20 9 . . 179 78 71 46 7 93 141 Largest 5 | . 1 2 2 . 1 1 1 1 1 . 1 2 2 2 . . 5 3 3 5 2 4 4 Hottest 480 | . 33 136 136 . 68 60 60 60 60 . 60 150 150 103 . . 332 163 223 319 70 480 364 Shots Fired 1761 | . 6 22 15 . 4 64 70 27 21 . 38 155 33 18 . . 442 83 109 134 14 215 291 Gun 974 | . . 6 . . . 64 70 27 21 . 38 72 17 9 . . 211 41 82 113 14 55 134 Cannon 746 | . . 10 13 . 1 . . . . . . 83 7 8 . . 227 42 23 21 . 160 151 Launcher 37 | . 6 6 2 . 3 . . . . . . . 9 1 . . . . 4 . . . 6 Special 4 | . . . . . . . . . . . . . . . . . 4 . . . . . . Kinetic 934 | . . . . . . 64 70 27 21 . 38 72 17 9 . . 243 53 26 64 14 60 156 Thermal 539 | . . 16 13 . 1 . . . . . . 83 7 8 . . 121 22 54 49 . 119 46 Explosive 37 | . 6 6 2 . 3 . . . . . . . 9 1 . . . . 4 . . . 6 Electromagnetic 251 | . . . . . . . . . . . . . . . . . 78 8 25 21 . 36 83 Robot Hit Streak 38 | . 1 3 4 . 4 24 24 26 7 . 17 27 7 4 . . 16 13 11 30 5 38 30 Robot Miss Streak 8 | . 3 5 8 . . 7 4 3 4 . 5 6 3 4 . . 8 4 4 3 2 3 2 Penetration Max 1 | . . . . . . . . . . . . . . . . . 1 . . 1 1 . . Secondary Targets 8 | . . . . . . . . . . . . . . . . . . . 1 2 1 . 4 Max Gunslinging Chain 1 | . . . . . . . . . . . . . . . . . . . 1 1 1 . 1 Capacitor 100 | . . . . . . . . . . . . . . . . . . 19 39 12 . . 30 Shots Hit Robots 1135 | . 2 10 5 . 4 59 44 15 14 . 37 91 23 9 . . 226 44 68 110 10 147 217 Core Hits 664 | . 7 16 7 . 6 46 35 13 13 . 34 67 15 9 . . 104 26 41 47 9 55 114 Critical Hits 50 | . . . . . . . . . . . . . . . . . 22 . . 8 5 10 5 Critical Kills 18 | . . . . . . . . . . . . . . . . . 7 . . 5 2 4 . Critical Parts Destroyed 29 | . . . . . . . . . . . . . . . . . 14 . . 3 2 6 4 Melee Attacks 27 | . . . . . . . . . . . . . 2 6 . . 3 . 2 2 . . 12 Impact . | . . . . . . . . . . . . . . . . . . . . . . . . Slashing 12 | . . . . . . . . . . . . . 2 6 . . . . 2 2 . . . Piercing 15 | . . . . . . . . . . . . . . . . . 3 . . . . . 12 Sneak Attacks 1 | . . . . . . . . . . . . . . . . . . . . . . . 1 Combat Hostiles . | . . . . . . . . . . . . . . . . . . . . . . . . Follow-up Attacks . | . . . . . . . . . . . . . . . . . . . . . . . . Damage Inflicted 47716 | . 410 632 343 . 270 2738 2520 818 837 . 2185 4931 900 358 . . 7655 2124 3453 2820 438 6118 8166 Guns 24208 | . . 45 . . . 2492 2520 818 837 . 2185 3143 267 13 . . 3167 547 1559 2147 438 1677 2353 Cannons 15739 | . . 83 165 . 21 . . . . . . 1520 114 110 . . 3543 1103 485 597 . 3897 4101 Explosions 6933 | . 410 495 178 . 249 246 . . . . . 268 480 107 . . 833 468 1409 . . 531 1259 Melee 679 | . . . . . . . . . . . . . 39 128 . . . . . 76 . . 436 Ramming 127 | . . 9 . . . . . . . . . . . . . . 82 6 . . . 13 17 Kinetic 23124 | . . . . . . 2492 2520 818 837 . 2185 3143 267 13 . . 2886 1103 503 1233 438 1299 3387 Thermal 12176 | . . 128 165 . 21 165 . . . . . 1520 114 110 . . 2601 911 948 914 . 3389 1190 Explosive 5199 | . 410 495 178 . 249 81 . . . . . 172 480 107 . . 359 . 1409 . . . 1259 Electromagnetic 6411 | . . . . . . . . . . . . 96 . . . . 1727 104 593 597 . 1417 1877 Impact . | . . . . . . . . . . . . . . . . . . . . . . . . Slashing 243 | . . . . . . . . . . . . . 39 128 . . . . . 76 . . . Piercing 436 | . . . . . . . . . . . . . . . . . . . . . . . 436 Highest Corruption 13 | . . . . . . . 1 1 1 1 1 2 . . . . 13 5 5 1 . 6 3 Average Corruption 2 | . . . . . . . 1 1 1 1 1 1 . . . . 7 3 1 1 . 2 1 Corruption Purged 26 | . . . . . . . 1 . . . . 2 . . . . . 3 5 1 . 8 6 Effects 212 | . . . . . . . 5 3 7 . 3 11 . . . . 114 14 17 1 . 23 14 Message Errors 50 | . . . . . . . 4 1 3 . 2 7 . . . . 20 3 3 . . 3 4 Matter Fused 29 | . . . . . . . . . . . . . . . . . 22 2 1 . . 3 1 Heat Flow Errors 14 | . . . . . . . . . . . . . . . . . 5 1 2 . . 4 2 Energy Discharges 13 | . . . . . . . . 1 1 . . 1 . . . . 5 2 1 . . 1 1 Parts Rejected 4 | . . . . . . . . . . . . . . . . . 2 2 . . . . . Data Loss (minor) 33 | . . . . . . . 1 1 3 . . 1 . . . . 12 3 7 1 . 2 2 Data Loss (major) 3 | . . . . . . . . . . . . . . . . . 3 . . . . . . Misfires 2 | . . . . . . . . . . . . . . . . . 1 . . . . 1 . Alerts 1 | . . . . . . . . . . . . . . . . . 1 . . . . . . Misdirections 4 | . . . . . . . . . . . . . . . . . 4 . . . . . . Targeting Errors 47 | . . . . . . . . . . . 1 2 . . . . 31 . 2 . . 8 3 Weapon Failures 12 | . . . . . . . . . . . . . . . . . 8 1 1 . . 1 1 Overload Shots 75 | . . . . . . . . . . . . 45 . . . . 10 . . 1 . 19 . Effects 12 | . . . . . . . . . . . . 7 . . . . . . . . . 5 . Heat Surge 4 | . . . . . . . . . . . . 3 . . . . . . . . . 1 . Short Circuit 1 | . . . . . . . . . . . . . . . . . . . . . . 1 . Meltdown 7 | . . . . . . . . . . . . 4 . . . . . . . . . 3 . Overflow Damage 884 | . 2 6 . . . 43 . . . . . 40 42 8 . . 110 170 158 6 . 166 133 Projectiles 428 | . . 6 . . . . . . . . . 40 39 . . . 63 55 6 6 . 113 100 Explosions 443 | . 2 . . . . 43 . . . . . . 3 . . . 47 115 152 . . 53 28 Melee 13 | . . . . . . . . . . . . . . 8 . . . . . . . . 5 Knockbacks 37 | . . . . . . . . . . . . . . . . . 7 7 3 . . 8 12 Impact 1 | . . . . . . . . . . . . . . . . . 1 . . . . . . Kinetic 34 | . . . . . . . . . . . . . . . . . 6 7 2 . . 8 11 Secondary 2 | . . . . . . . . . . . . . . . . . . . 1 . . . 1 Self-Inflicted Damage 496 | . . 4 . . . 63 . . . . . 111 . . . . . 216 . . . 102 . Shots 7 | . . . . . . 1 . . . . . 2 . . . . . 3 . . . 1 . Rammed 19 | . . 1 . . . . . . . . . . . . . . 11 1 . . . 1 5 Targets Rammed 20 | . . 1 . . . . . . . . . . . . . . 12 1 . . . 1 5 Kicked . | . . . . . . . . . . . . . . . . . . . . . . . . Crushed 1 | . . . . . . . . . . . . . . . . . 1 . . . . . . Highest Temperature 481 | . . 321 213 . 32 315 224 256 138 . 260 378 390 157 . . 438 374 373 378 . 468 481 Average Temperature 119 | . . 95 89 . 14 94 67 96 68 . 80 107 118 60 . . 107 99 116 143 . 152 180 Received Heat Transfer 2656 | . . 87 . . 9 72 78 54 27 . 108 76 . 84 . . 479 31 255 408 84 345 459 Effects 22 | . . . . . . 2 . . . . . 2 . . . . . 1 1 . . 9 7 Shutdowns 5 | . . . . . . . . . . . . . . . . . . 1 . . . 4 . Energy Bleed 5 | . . . . . . . . . . . . 1 . . . . . . . . . 2 2 Interference 6 | . . . . . . 2 . . . . . . . . . . . . . . . 2 2 Damage (minor) 6 | . . . . . . . . . . . . 1 . . . . . . 1 . . 1 3 Siege Activations 1 | . . . . . . . . . . . . . . . . . . . . . . . 1 Total Turns 19 | . . . . . . . . . . . . . . . . . . . . . . . 19 Longest Duration 19 | . . . . . . . . . . . . . . . . . . . . . . . 19 Robots Corrupted 10 | . . . . . . . . . . . . . . . . . 2 . 1 3 . 3 1 Combat Hostiles 8 | . . . . . . . . . . . . . . . . . . . 1 3 . 3 1 Parts Fried 38 | . . . . . . . . . . . . 1 . . . . 6 2 5 4 . 6 14 Impact Corruptions 1 | . . . . . . . . . . . . . . . . . 1 . . . . . . Robots Melted . | . . . . . . . . . . . . . . . . . . . . . . . . Combat Hostiles . | . . . . . . . . . . . . . . . . . . . . . . . . Parts Melted 12 | . . 2 . . . . . . . . . 1 . . . . 3 . 1 2 . 1 2 Heat Transferred 13881 | . . 248 296 . 37 150 . . . . . 1590 75 200 . . 3170 868 1406 1258 . 3399 1184 Parts Sabotaged . | . . . . . . . . . . . . . . . . . . . . . . . . Parts Stolen . | . . . . . . . . . . . . . . . . . . . . . . . . Parts Stripped . | . . . . . . . . . . . . . . . . . . . . . . . . Power Chain Reactions 4 | . . . . . . . . . . . . . . . . . 2 . . . . 2 . Missiles Intercepted . | . . . . . . . . . . . . . . . . . . . . . . . . Alert | -11 -10 -9 -9 -9 -8 -8 -7 -7 -7 -7 -6 -6 -6 -6 -6 -5 -5 -4 -4 -4 -4 -4 -3 ------- Run | Scr Mat Mat Min Exi Min Mat Fac Low Low Dat Pro Fac Low Low Zio Pro Fac Fac Ext Cet Arc Hub Res Peak Influence 1352 | . 174 310 275 . 105 439 301 . . . . 1015 . . . . 1352 1053 726 748 577 663 915 Initial 662 | . . 73 120 . . 40 91 . . . . 329 . . . . 20 662 490 406 299 186 288 Average 395 | . 79 228 201 . 101 218 92 . . . . 518 . . . . 490 937 385 541 415 284 395 Maximum Alert Level 4 | . . 1 1 . . 2 1 . . . . 3 . . . . 4 3 3 3 2 2 3 Low Security (%) 34 | 100 100 33 62 . 100 37 89 . . . . . . . . . 45 . 9 . . 50 21 Level 1 24 | . . 66 37 . . 60 10 . . . . 32 . . . . . . 56 . 53 19 45 Level 2 22 | . . . . . . 1 . . . . . 47 . . . . 16 6 31 83 46 29 17 Level 3 16 | . . . . . . . . . . . . 19 . . . . 24 93 2 15 . . 15 Level 4 2 | . . . . . . . . . . . . . . . . . 12 . . . . . . Level 5 . | . . . . . . . . . . . . . . . . . . . . . . . . High Security . | . . . . . . . . . . . . . . . . . . . . . . . . Max Security . | . . . . . . . . . . . . . . . . . . . . . . . . Squads Dispatched 70 | . 1 1 . . . 3 7 . 1 . 1 9 . . . . 15 6 2 2 . 10 12 Investigation 7 | . . . . . . 1 2 . . . . 1 . . . . 1 . . 2 . . . Extermination 24 | . . . . . . . 5 . . . . 3 . . . . 7 2 . . . 3 4 Reinforcement 16 | . 1 1 . . . 1 . . . . . 2 . . . . 4 2 2 . . 1 2 Assault 10 | . . . . . . . . . 1 . 1 1 . . . . . 2 . . . 3 2 Garrison 13 | . . . . . . 1 . . . . . 2 . . . . 3 . . . . 3 4 Intercept . | . . . . . . . . . . . . . . . . . . . . . . . . Construction Impeded 5 | . . . . . . . . . . . . . . . . . 3 . 1 . . . 1 Haulers Reinforced 4 | . . . . . . . . . . . . 1 . . . . 1 1 . . . 1 . Stealth | -11 -10 -9 -9 -9 -8 -8 -7 -7 -7 -7 -6 -6 -6 -6 -6 -5 -5 -4 -4 -4 -4 -4 -3 --------- Run | Scr Mat Mat Min Exi Min Mat Fac Low Low Dat Pro Fac Low Low Zio Pro Fac Fac Ext Cet Arc Hub Res Distress Signals 22 | . 2 2 . . . 3 . . . . . . . . . . 2 4 2 2 . 3 2 Communications Jammed . | . . . . . . . . . . . . . . . . . . . . . . . . Distress Signals . | . . . . . . . . . . . . . . . . . . . . . . . . Times Spotted 493 | . 7 20 4 . 3 26 15 10 10 . 28 40 15 12 . 1 60 42 31 28 25 48 68 Peak Tracking Total 16 | . 4 11 4 . 3 4 3 9 9 . 11 5 4 7 . 1 6 7 7 7 16 8 7 Tactical Retreats 26 | . . . . . . . . 2 2 . 3 . 1 2 . . 3 5 1 . . 2 5 Traps | -11 -10 -9 -9 -9 -8 -8 -7 -7 -7 -7 -6 -6 -6 -6 -6 -5 -5 -4 -4 -4 -4 -4 -3 ------- Run | Scr Mat Mat Min Exi Min Mat Fac Low Low Dat Pro Fac Low Low Zio Pro Fac Fac Ext Cet Arc Hub Res Traps Triggered 14 | . . . . . . 3 2 . . . . 1 . . . . 2 2 3 . . . 1 Indirectly . | . . . . . . . . . . . . . . . . . . . . . . . . Trap Hack Attempts . | . . . . . . . . . . . . . . . . . . . . . . . . Triggered . | . . . . . . . . . . . . . . . . . . . . . . . . Disarmed . | . . . . . . . . . . . . . . . . . . . . . . . . Reprogrammed . | . . . . . . . . . . . . . . . . . . . . . . . . Reused 1 | . . . . . . . . 1 . . . . . . . . . . . . . . . Traps Extracted . | . . . . . . . . . . . . . . . . . . . . . . . . Installed 3 | . . . . . . . . 3 . . . . . . . . . . . . . . . Triggered 9 | . . . . . . . . 5 . . . . 3 . . . 1 . . . . . . Machines | -11 -10 -9 -9 -9 -8 -8 -7 -7 -7 -7 -6 -6 -6 -6 -6 -5 -5 -4 -4 -4 -4 -4 -3 ---------- Run | Scr Mat Mat Min Exi Min Mat Fac Low Low Dat Pro Fac Low Low Zio Pro Fac Fac Ext Cet Arc Hub Res Machines Disabled 65 | . 1 . 1 . . 3 1 . 1 . . 11 . . . . 16 7 4 5 1 9 5 Max in Single Turn 5 | . 1 . 1 . . 1 1 . 1 . . 2 . . . . 5 5 2 1 . 4 1 Garrison Access 2 | . . . . . . . . . . . . 2 . . . . . . . . . . . Network Hub 1 | . . . . . . . . . . . . . . . . . . . . . . 1 . Machines Sabotaged . | . . . . . . . . . . . . . . . . . . . . . . . . Garrisons Compromised . | . . . . . . . . . . . . . . . . . . . . . . . . Overloaded Fab Kills . | . . . . . . . . . . . . . . . . . . . . . . . . Fab Network Shutdowns 1 | . . . . . . . . . . . . 1 . . . . . . . . . . . Hacking | -11 -10 -9 -9 -9 -8 -8 -7 -7 -7 -7 -6 -6 -6 -6 -6 -5 -5 -4 -4 -4 -4 -4 -3 --------- Run | Scr Mat Mat Min Exi Min Mat Fac Low Low Dat Pro Fac Low Low Zio Pro Fac Fac Ext Cet Arc Hub Res Machines Accessed 93 | . . . . 3 . 6 9 2 . 4 . 21 . . 1 . 13 6 8 2 1 9 8 Terminals 51 | . . . . . . 3 7 . . . . 11 . . . . 6 2 7 2 . 9 4 Fabricators 6 | . . . . . . . . . . . . 2 . . . . 2 2 . . . . . Repair Stations 9 | . . . . . . 2 1 . . . . 2 . . . . 3 . . . . . 1 Recycling Units 5 | . . . . . . 1 . . . . . 2 . . . . . . 1 . . . 1 Scanalyzers 7 | . . . . . . . 1 . . . . 2 . . . . 1 2 . . . . 1 Garrison Access 4 | . . . . . . . . . . . . 2 . . . . 1 . . . . . 1 Total Hacks 296 | . . . . 8 . 16 30 2 . 29 . 58 . . 7 . 35 14 18 8 25 26 20 Successful 201 | . . . . 8 . 12 19 2 . 29 . 35 . . 7 . 22 6 11 1 25 15 9 Failed 95 | . . . . . . 4 11 . . . . 23 . . . . 13 8 7 7 . 11 11 Catastrophic 13 | . . . . . . . 1 . . . . 3 . . . . . 1 1 2 . 1 4 Database Lockouts . | . . . . . . . . . . . . . . . . . . . . . . . . Manual 82 | . . . . 2 . 3 11 . . . . 16 . . . . 12 2 9 3 3 11 10 Terminals 144 | . . . . . . 10 20 . . . . 29 . . . . 19 3 15 8 . 26 14 Fabricators 14 | . . . . . . . . . . . . 4 . . . . 4 6 . . . . . Repair Stations 17 | . . . . . . 4 2 . . . . 3 . . . . 7 . . . . . 1 Recycling Units 13 | . . . . . . 2 . . . . . 5 . . . . . . 3 . . . 3 Scanalyzers 28 | . . . . . . . 8 . . . . 11 . . . . 3 5 . . . . 1 Garrison Access 9 | . . . . . . . . . . . . 6 . . . . 2 . . . . . 1 Terminal Hacks 130 | . . . . 8 . 5 6 2 . 29 . 11 . . 7 . 8 1 9 1 25 12 6 Record 50 | . . . . 8 . . . . . 11 . 1 . . . . . . . 1 25 3 1 Part Schematic 18 | . . . . . . . . . . 8 . . . . 7 . 2 . . . . 1 . Robot Schematic 7 | . . . . . . . . . . 7 . . . . . . . . . . . . . Prototype ID Bank 4 | . . . . . . . 1 . . 3 . . . . . . . . . . . . . Open Door 3 | . . . . . . . . 2 . . . . . . . . . . 1 . . . . Level Access Points 1 | . . . . . . . 1 . . . . . . . . . . . . . . . . Branch Access Points 4 | . . . . . . . 1 . . . . 1 . . . . . . . . . 1 1 Terminal Index 1 | . . . . . . 1 . . . . . . . . . . . . . . . . . Repair Station Index 1 | . . . . . . . . . . . . . . . . . . . . . . 1 . Alert Level 17 | . . . . . . 2 1 . . . . 3 . . . . 4 1 3 . . 2 1 Unreport Threat 12 | . . . . . . 1 1 . . . . 4 . . . . 1 . 2 . . 2 1 Locate Traps 4 | . . . . . . 1 . . . . . . . . . . . . 2 . . 1 . Hauler Manifests 3 | . . . . . . . . . . . . . . . . . . . 1 . . 1 1 Registered Components 2 | . . . . . . . . . . . . 1 . . . . 1 . . . . . . Zone Layout 3 | . . . . . . . 1 . . . . 1 . . . . . . . . . . 1 Fabricator Hacks 9 | . . . . . . . . . . . . 3 . . . . 2 4 . . . . . Load Schematic 3 | . . . . . . . . . . . . 1 . . . . 1 1 . . . . . Build 6 | . . . . . . . . . . . . 2 . . . . 1 3 . . . . . Repair Station Hacks 13 | . . . . . . 4 2 . . . . 2 . . . . 5 . . . . . . Scan Component 7 | . . . . . . 2 1 . . . . 1 . . . . 3 . . . . . . Repair 6 | . . . . . . 2 1 . . . . 1 . . . . 2 . . . . . . Recycling Unit Hacks 8 | . . . . . . 2 . . . . . 3 . . . . . . 2 . . . 1 Report Inventory 5 | . . . . . . 1 . . . . . 2 . . . . . . 1 . . . 1 Retrieve Components 3 | . . . . . . 1 . . . . . 1 . . . . . . 1 . . . . Scanalyzer 18 | . . . . . . . 7 . . . . 8 . . . . 2 1 . . . . . Insert Component 9 | . . . . . . . 3 . . . . 4 . . . . 1 1 . . . . . Analyze 9 | . . . . . . . 4 . . . . 4 . . . . 1 . . . . . . Garrison Access Hacks 2 | . . . . . . . . . . . . 2 . . . . . . . . . . . Seal Access 2 | . . . . . . . . . . . . 2 . . . . . . . . . . . Unauthorized Hacks 21 | . . . . . . 1 4 . . . . 6 . . . . 5 . . . . 3 2 Terminals 21 | . . . . . . 1 4 . . . . 6 . . . . 5 . . . . 3 2 Assimilate 4 | . . . . . . . . . . . . 3 . . . . 1 . . . . . . Botnet 17 | . . . . . . 1 4 . . . . 3 . . . . 4 . . . . 3 2 Fabricators . | . . . . . . . . . . . . . . . . . . . . . . . . Repair Stations . | . . . . . . . . . . . . . . . . . . . . . . . . Recycling Units . | . . . . . . . . . . . . . . . . . . . . . . . . Scanalyzers . | . . . . . . . . . . . . . . . . . . . . . . . . Garrison Access . | . . . . . . . . . . . . . . . . . . . . . . . . Data Cores Recovered 3 | . . . . . . . . . . . . 1 . . . . . . . . . 1 1 Used 2 | . . . . . . . . . . . . . . . . . . . . . . 1 1 Hacking Detections 78 | . . . . . . 4 9 . . . . 20 . . . . 13 5 7 3 . 9 8 Full Trace Events 4 | . . . . . . . 1 . . . . 1 . . . . . . . 2 . . . Feedback Events 1 | . . . . . . . 1 . . . . . . . . . . . . . . . . Corruption 1 | . . . . . . . 1 . . . . . . . . . . . . . . . . Feedback Blocked . | . . . . . . . . . . . . . . . . . . . . . . . . Robot Schematics Acquired 7 | . . . . . . . . . . 7 . . . . . . . . . . . . . Robots Built 8 | . . . . . . . . . . . . 8 . . . . . . . . . . . Matter 504 | . . . . . . . . . . . . 504 . . . . . . . . . . . Time 134 | . . . . . . . . . . . . 134 . . . . . . . . . . . Total Robot Build Rating 32 | . . . . . . . . . . . . 32 . . . . . . . . . . . Part Schematics Acquired 25 | . . . . . . . 3 . . 8 . 3 . . 7 . 3 . . . . 1 . Parts Built 8 | . . . . . . . . . . . . . . . . . 2 6 . . . . . Matter 980 | . . . . . . . . . . . . . . . . . 256 724 . . . . . Time 340 | . . . . . . . . . . . . . . . . . 42 298 . . . . . Total Part Build Rating 60 | . . . . . . . . . . . . . . . . . 16 44 . . . . . Parts Repaired 6 | . . . . . . 2 1 . . . . 1 . . . . 2 . . . . . . Time 256 | . . . . . . 70 19 . . . . 40 . . . . 127 . . . . . . Parts Recycled . | . . . . . . . . . . . . . . . . . . . . . . . . Recycled Matter . | . . . . . . . . . . . . . . . . . . . . . . . . Retrieved Matter . | . . . . . . . . . . . . . . . . . . . . . . . . Retrieved Components 14 | . . . . . . 2 . . . . . 3 . . . . . . 9 . . . . Parts Scanalyzed 9 | . . . . . . . 3 . . . . 4 . . . . 1 1 . . . . . Part Schematics Acquired 7 | . . . . . . . 3 . . . . 3 . . . . 1 . . . . . . Parts Damaged 2 | . . . . . . . . . . . . 1 . . . . 1 . . . . . . Bothacking | -11 -10 -9 -9 -9 -8 -8 -7 -7 -7 -7 -6 -6 -6 -6 -6 -5 -5 -4 -4 -4 -4 -4 -3 ------------ Run | Scr Mat Mat Min Exi Min Mat Fac Low Low Dat Pro Fac Low Low Zio Pro Fac Fac Ext Cet Arc Hub Res Used RIF Installer . | . . . . . . . . . . . . . . . . . . . . . . . . Robots Hacked . | . . . . . . . . . . . . . . . . . . . . . . . . Non-combat . | . . . . . . . . . . . . . . . . . . . . . . . . Combat . | . . . . . . . . . . . . . . . . . . . . . . . . Robot Hacks Applied . | . . . . . . . . . . . . . . . . . . . . . . . . Relay Couplers Released 4 | . . . . . . . . . . . . . . . . . . . . . . . 4 Programmers 4 | . . . . . . . . . . . . . . . . . . . . . . . 4 Robots Rewired 17 | . . . . . . . . 2 2 . 2 . . . . . . . 10 . . . 1 Allies Hacked 2 | . . . . . . . . . . . . 1 . . . . 1 . . . . . . Hacks Repelled . | . . . . . . . . . . . . . . . . . . . . . . . . Allies | -11 -10 -9 -9 -9 -8 -8 -7 -7 -7 -7 -6 -6 -6 -6 -6 -5 -5 -4 -4 -4 -4 -4 -3 -------- Run | Scr Mat Mat Min Exi Min Mat Fac Low Low Dat Pro Fac Low Low Zio Pro Fac Fac Ext Cet Arc Hub Res Total Allies 50 | . . . . . . . . 2 2 . 3 11 . 1 . . 1 . 27 . 2 . 1 Largest Group 15 | . . . . . . . . 2 2 2 5 7 4 1 1 1 2 . 15 8 2 . 1 Highest-Rated Group 605 | . . . . . . . . 48 62 60 203 138 72 99 99 99 125 . 605 422 188 . 64 Highest-Rated Ally 156 | . . . . . . . . 32 32 30 94 94 26 99 99 99 99 . 156 156 94 . 64 Total Orders 27 | . . . . . . . . . 2 . . 11 . . . . 10 2 2 . . . . STAY 13 | . . . . . . . . . 1 . . 5 . . . . 5 . 2 . . . . ROAM 4 | . . . . . . . . . 1 . . 3 . . . . . . . . . . . FOLLOW 8 | . . . . . . . . . . . . 3 . . . . 5 . . . . . . EXPLORE 1 | . . . . . . . . . . . . . . . . . . 1 . . . . . RETURN 1 | . . . . . . . . . . . . . . . . . . 1 . . . . . Ally Attacks 351 | . . . . . . . . . 11 . 45 64 4 10 . 1 2 . 127 47 29 . 11 Total Damage 9420 | . . . . . . . . . 375 . 1174 876 40 615 . 96 164 . 3509 1085 985 . 501 Kills 71 | . . . . . . . . . 4 . 9 7 . 5 . 1 1 . 32 2 8 . 2 Allies Corrupted 1 | . . . . . . . . . . . . . . . . . 1 . . . . . . Allies Melted . | . . . . . . . . . . . . . . . . . . . . . . . . Intel | -11 -10 -9 -9 -9 -8 -8 -7 -7 -7 -7 -6 -6 -6 -6 -6 -5 -5 -4 -4 -4 -4 -4 -3 ------- Run | Scr Mat Mat Min Exi Min Mat Fac Low Low Dat Pro Fac Low Low Zio Pro Fac Fac Ext Cet Arc Hub Res Robot Analysis Total . | . . . . . . . . . . . . . . . . . . . . . . . . Derelict Logs Recovered 13 | . . . 1 . . . . 2 3 . 2 . 2 1 1 1 . . . . . . . Drone Launches 1 | . . . . . . . . . . . . . . . . . . 1 . . . . . Drone Recoveries 1 | . . . . . . . . . . . . . . . . . . 1 . . . . . Exploration | -11 -10 -9 -9 -9 -8 -8 -7 -7 -7 -7 -6 -6 -6 -6 -6 -5 -5 -4 -4 -4 -4 -4 -3 ------------- Run | Scr Mat Mat Min Exi Min Mat Fac Low Low Dat Pro Fac Low Low Zio Pro Fac Fac Ext Cet Arc Hub Res Turns Passed 23551 | 55 145 104 180 269 316 1276 2206 1699 1487 99 1010 2508 426 574 599 295 3061 1110 1599 687 116 1619 2111 Spaces Moved 17811 | 40 133 119 269 493 308 713 1497 1251 1116 75 724 2342 908 790 1097 364 1709 1025 909 313 56 608 952 Core 20 | 14 . . . . . . . . . . . . . . . . . . . . . . 6 Treads 3031 | . . . . . . . . . . . . . . . . . 1286 45 . 284 56 572 788 Legs 7342 | 26 28 . . . . 705 1497 1251 1116 75 724 665 . . . . . 265 909 29 . 36 16 Wheels . | . . . . . . . . . . . . . . . . . . . . . . . . Hover 6475 | . 105 119 269 493 308 8 . . . . . 1677 908 790 1097 364 195 . . . . . 142 Flight 943 | . . . . . . . . . . . . . . . . . 228 715 . . . . . Fastest Speed 22 | 50 56 48 52 52 52 52 127 127 127 127 127 22 26 26 43 43 33 29 120 120 160 152 48 Average Speed 98 | 111 89 52 52 52 52 126 127 127 127 127 127 76 38 41 43 43 123 61 120 156 160 160 151 Slowest Speed 220 | 150 130 116 52 52 52 160 127 127 127 127 127 180 88 43 98 43 165 150 150 180 160 220 220 Overloaded Moves 1047 | . . . . . . . . . . . . 981 33 6 . . 27 . . . . . . Propulsion Burnouts . | . . . . . . . . . . . . . . . . . . . . . . . . Robots Hopped 10 | . . . . . . . . . . . . . . . . . 1 6 3 . . . . Cave-ins Triggered . | . . . . . . . . . . . . . . . . . . . . . . . . Time Travels 1 | . . . . 1 . . . . . . . . . . . . . . . . . . . Exploration Rate (%) 58 | 3 27 26 51 73 61 59 35 99 99 68 88 50 79 72 86 48 41 25 77 84 83 52 26 Regions Visited 23 Branch Regions 15 Pre-discovered Areas 5 | . . . . . . . . 1 1 1 . . . . 1 1 . . . . . . . Known Exits Taken 9 | . . . . . . . 1 . . . 1 1 . 1 1 1 1 . . 1 . 1 . Unknown Exits Taken 14 | 1 1 1 1 1 1 1 . 1 1 1 . . 1 . . . . 1 1 . 1 . . Scrap Searched 26 | . . . 1 . 1 . . 2 9 . 1 . 4 3 4 1 . . . . . . . Spaces Dug 302 | . . . . . . 5 23 5 3 . . 21 . 1 . . 26 9 8 . . 187 14 Terrain Destroyed 1095 | . 45 46 14 . 25 87 36 7 7 . 8 74 106 18 . . 196 50 46 5 3 218 104 Melee 7 | . . . . . . . . . . . . . . 1 . . 3 . 2 . . . 1 Projectile 349 | . . 1 . . . 63 36 7 7 . 8 45 10 1 . . 67 11 7 5 3 46 32 AOE 739 | . 45 45 14 . 25 24 . . . . . 29 96 16 . . 126 39 37 . . 172 71 Terrain Rammed . | . . . . . . . . . . . . . . . . . . . . . . . . Walls Destroyed . | . . . . . . . . . . . . . . . . . . . . . . . . Machines Disabled . | . . . . . . . . . . . . . . . . . . . . . . . . Actions | -11 -10 -9 -9 -9 -8 -8 -7 -7 -7 -7 -6 -6 -6 -6 -6 -5 -5 -4 -4 -4 -4 -4 -3 --------- Run | Scr Mat Mat Min Exi Min Mat Fac Low Low Dat Pro Fac Low Low Zio Pro Fac Fac Ext Cet Arc Hub Res Total 22686 | 47 152 138 291 506 460 1088 1808 1363 1185 79 815 2991 953 1006 1224 501 2323 1427 1356 430 68 1069 1406 Wait 2794 | . 1 1 6 . 145 266 204 47 30 5 26 447 19 182 107 138 305 256 166 13 . 292 138 Move 17769 | 39 132 118 268 492 307 712 1496 1250 1115 74 723 2341 907 789 1096 363 1706 1012 903 312 55 607 952 Hop 9 | . . . . . . . . . . . . . . . . . 1 6 2 . . . . Pick Up 175 | 2 6 1 2 3 2 13 11 4 1 . 1 30 1 7 6 . 15 11 19 10 . 10 20 Fast Attach 185 | 6 3 . 1 2 . 11 3 1 . . . 14 3 . 5 . 27 24 20 15 2 16 32 Attach 87 | . . 4 . 1 . 2 1 . . . . 12 1 5 . . 12 7 6 3 3 11 19 Detach 38 | . . . . . . 2 . . . . . 1 . . . . 4 6 3 4 . 5 13 Swap 124 | . 1 . 4 2 . 2 7 2 1 . 1 12 . 6 1 . 18 7 18 6 . 19 17 Drop 283 | . 3 . 1 6 2 16 16 7 1 . 2 41 . 2 9 . 39 19 33 19 1 15 51 Fire 989 | . 6 13 9 . 4 64 70 27 21 . 38 93 20 9 . . 179 78 71 46 7 93 141 Melee 27 | . . . . . . . . . . . . . 2 6 . . 3 . 2 2 . . 12 Ram 2 | . . 1 . . . . . . . . . . . . . . 1 . . . . . . Kick . | . . . . . . . . . . . . . . . . . . . . . . . . Crush 19 | . . . . . . . . . . . . . . . . . 12 1 . . . 1 5 Escape Stasis 13 | . . . . . . . . . . . . . . . . . . . 13 . . . . Rewire 169 | . . . . . . . . 22 16 . 24 . . . . . 1 . 100 . . . 6 Trap 3 | . . . . . . . . 3 . . . . . . . . . . . . . . . Miscellaneous . | . . . . . . . . . . . . . . . . . . . . . . . . Route ------- -11/Scrapyard -10/Materials -9/Materials -9/Mines -9/Exiles -8/Mines -8/Materials (discovered 2 exits: *Fac x2) -7/Factory (discovered 6 exits: Fac x4 / *Low x2) -7/Lower Caves -7/Lower Caves (discovered 2 exits: *Fac / *Dat) -7/Data Miner -6/Proximity Caves -6/Factory (discovered 4 exits: *Fac x2 / *Low x2) -6/Lower Caves -6/Lower Caves -6/Zion -5/Proximity Caves -5/Factory (discovered 4 exits: *Fac x2 / Upp x2) -4/Factory -4/Extension (discovered 3 exits: *Res x2 / *Cet) -4/Cetus (discovered 2 exits: *Res / *Arc) -4/Archives -4/Hub_04(d) -3/Research (discovered 3 exits: Arm / Qua x2) History --------- Turn | Location | Event 17 | -11/Scrapyard | Discovered new exit (range 15) 56 | -11/Scrapyard | Entered Materials 189 | -10/Materials | Discovered new exit (range 10) 201 | -10/Materials | Entered another Materials area 201 | -9/Materials | Evolved 2 slots: Propulsion x2 277 | -9/Materials | Destroyed 8 combat bots 298 | -9/Materials | Discovered new exit (range 16) 305 | -9/Materials | Entered Mines 313 | -9/Mines | Build established: Mutant 436 | -9/Mines | Learned Materials stockpile data 483 | -9/Mines | Deemed a non-threat by the Exiles lab entrance 483 | -9/Mines | Discovered new exit (range 5) 485 | -9/Mines | Entered Exiles 498 | -9/Exiles | Met 8R-AWN 507 | -9/Exiles | Met EX-HEX 521 | -9/Exiles | Met EX-BIN 553 | -9/Exiles | Aligned with FarCom system 554 | -9/Exiles | Given EX-Vault access code 566 | -9/Exiles | Opened EX-Vault 568 | -9/Exiles | Found Prototype Device 569 | -9/Exiles | Identified Chronowheel 569 | -9/Exiles | Activated Chronowheel 569 | -9/Exiles | Spacetime reconverged on an earlier point 571 | -9/Exiles | Found Prototype Device 571 | -9/Exiles | Identified Trap Reconfigurator 603 | -9/Exiles | Found Prototype Ballistic Gun 615 | -9/Exiles | Warned to stay clear of 0b10 Research branches 630 | -9/Exiles | Met EX-DEC 748 | -9/Exiles | Discovered new exit (range 14) 754 | -9/Exiles | Left Exiles lab with XL Autogun Array 754 | -9/Exiles | Entered Mines 1068 | -8/Mines | Discovered new exit (range 4) 1070 | -8/Mines | Entered Materials 1070 | -8/Materials | Evolved 2 slots: Weapon x2 1072 | -8/Materials | Identified XL Autogun Array 1170 | -8/Materials | Repaired Core Shielding 1599 | -8/Materials | Build established: Skirmisher 1731 | -8/Materials | Repaired Imp. Titanium Leg 1946 | -8/Materials | Garrison activated, responded to threat 2059 | -8/Materials | Discovered new exit (range 6) 2307 | -8/Materials | Discovered new exit (range 5) 2346 | -8/Materials | Entered Factory 2346 | -7/Factory | Evolved 2 slots: Utility x2 2642 | -7/Factory | Build established: Gunner 4059 | -7/Factory | Repaired Deuterium Engine 4246 | -7/Factory | Identified exit to Factory 4246 | -7/Factory | Identified exit to Lower Caves 4552 | -7/Factory | Entered Lower Caves 4553 | -7/Lower Caves | Encountered a Warlord checkpoint 4605 | -7/Lower Caves | Learned location of Zion (-6) 4678 | -7/Lower Caves | Found Prototype Device 4991 | -7/Lower Caves | Learned Factory garrison access intel 5444 | -7/Lower Caves | Discovered new exit (range 9) 5851 | -7/Lower Caves | Attracted the attention of an 0b10 outpost 6251 | -7/Lower Caves | Entered another Lower Caves area 6251 | -7/Lower Caves | Accompanied by 2 allies 6365 | -7/Lower Caves | Discovered exit to Factory (range 13) 6656 | -7/Lower Caves | Encountered a Warlord checkpoint 6663 | -7/Lower Caves | Learned Factory terminal intel 6917 | -7/Lower Caves | Learned 4 Factory zone layouts 6995 | -7/Lower Caves | Discovered new exit (range 9) 6997 | -7/Lower Caves | Attracted the attention of an 0b10 outpost 7738 | -7/Lower Caves | Entered Data Miner 7738 | -7/Data Miner | Accompanied by 2 allies 7738 | -7/Data Miner | Discovered new exit (range 7) 7763 | -7/Data Miner | Met Data Miner 7784 | -7/Data Miner | Learned location of Section 7 (-2) 7784 | -7/Data Miner | Acquired the access code to Warlord's prototype stash 7803 | -7/Data Miner | Received God Mode back door access code from Data Miner 7837 | -7/Data Miner | Entered Proximity Caves 7837 | -6/Proximity Caves | Accompanied by 2 allies 7853 | -6/Proximity Caves | Escorted by Enhanced Grunt 7853 | -6/Proximity Caves | Attracted the attention of an 0b10 outpost 8191 | -6/Proximity Caves | Build established: Commander-Gunner 8387 | -6/Proximity Caves | Attracted the attention of an 0b10 checkpoint 8686 | -6/Proximity Caves | Build established: Gunner 8754 | -6/Proximity Caves | Learned Factory terminal intel 8847 | -6/Proximity Caves | Entered Factory 8847 | -6/Factory | Accompanied by 2 allies 8847 | -6/Factory | Evolved 2 slots: Utility x1, Weapon x1 8848 | -6/Factory | Identified exit to Factory 8849 | -6/Factory | Loaded intel: 19 terminal locations 8850 | -6/Factory | Loaded intel: 4 garrison access locations 8941 | -6/Factory | Garrison activated, responded to threat 9363 | -6/Factory | Discovered new exit (range 15) 9536 | -6/Factory | Build established: Mutant 9694 | -6/Factory | Garrison activated, responded to threat 9768 | -6/Factory | Identified Heart of Steel 9797 | -6/Factory | Discovered exit to Factory (range 10) 9989 | -6/Factory | Identified exit to Lower Caves 10247 | -6/Factory | First assault squad dispatched 10376 | -6/Factory | Fabricated S-27 Virus (x4) 10446 | -6/Factory | Fabricated S-27 Virus (x4) 10766 | -6/Factory | Local fabrication network quarantined 11262 | -6/Factory | Repaired Cld. Aerolev Unit 11355 | -6/Factory | Entered Lower Caves 11355 | -6/Lower Caves | Accompanied by 4 allies 11566 | -6/Lower Caves | Learned Factory security intel 11588 | -6/Lower Caves | Discovered new exit (range 11) 11695 | -6/Lower Caves | Learned Factory stockpile data 11712 | -6/Lower Caves | Spotted B-75 Beast 11781 | -6/Lower Caves | Entered another Lower Caves area 11783 | -6/Lower Caves | Attracted the attention of an 0b10 checkpoint 11786 | -6/Lower Caves | Heart of Steel transformed into Warbot 11872 | -6/Lower Caves | Learned Factory terminal intel 12225 | -6/Lower Caves | Spotted B-75 Beast 12271 | -6/Lower Caves | Discovered new exit (range 9) 12274 | -6/Lower Caves | Identified exit to Zion 12355 | -6/Lower Caves | Entered Zion 12355 | -6/Zion | Accompanied by 1 ally (Warbot) 12363 | -6/Zion | Given A8's code to call for help 12403 | -6/Zion | Discovered new exit (range 11) 12408 | -6/Zion | Identified exit to Proximity Caves 12415 | -6/Zion | Given the Hacking Drone Bay 12417 | -6/Zion | Found Prototype Device 12503 | -6/Zion | Learned 12 Factory zone layouts 12627 | -6/Zion | Found CR-A16's Pointy Stick 12644 | -6/Zion | Rebuked by Imprinter 12667 | -6/Zion | Build established: Derelict-Mutant 12846 | -6/Zion | Acquired unknown access codes intercepted by a Zionite 12954 | -6/Zion | Entered Proximity Caves 12954 | -5/Proximity Caves | Accompanied by 1 ally (Warbot) 13007 | -5/Proximity Caves | Spotted B-75 Beast 13047 | -5/Proximity Caves | Build established: Derelict-Tank 13080 | -5/Proximity Caves | Learned location of Warlord (-4) 13202 | -5/Proximity Caves | Discovered exit to Factory (range 16) 13249 | -5/Proximity Caves | Entered Factory 13249 | -5/Factory | Accompanied by 1 ally (Warbot) 13249 | -5/Factory | Evolved 2 slots: Power x1, Utility x1 13250 | -5/Factory | Identified exit to Upper Caves 13253 | -5/Factory | Loaded intel: 17 terminal locations 13438 | -5/Factory | Fabricated Adv. Heavy Treads (x2) 13561 | -5/Factory | Build established: Derelict-Mutant 13725 | -5/Factory | Repaired F-cell Engine 14348 | -5/Factory | Build established: Derelict-Skirmisher 14379 | -5/Factory | Discovered new exit (range 10) 14484 | -5/Factory | Identified exit to Factory 14613 | -5/Factory | Garrison activated, responded to threat 15290 | -5/Factory | Incoming investigation squad redirected 15419 | -5/Factory | Repaired Broken Adv. Heavy Treads 15530 | -5/Factory | System corruption reached 10% 15611 | -5/Factory | Discovered exit to Factory (range 9) 15829 | -5/Factory | Build established: Skirmisher 15963 | -5/Factory | Destroyed 9 combat bots 16161 | -5/Factory | Identified Hacking Drone Bay 16310 | -5/Factory | Entered another Factory area 16310 | -4/Factory | Evolved 2 slots: Propulsion x1, Utility x1 16311 | -4/Factory | Loaded intel: 22 terminal locations 16414 | -4/Factory | Lost 4 parts (1p1u2w) 16681 | -4/Factory | Build established: Sprinter 16877 | -4/Factory | Fabricated Antimissile System? 16931 | -4/Factory | Fabricated Phase Gun? 17138 | -4/Factory | Spotted B-86 Titan 17238 | -4/Factory | Fabricated Phase Gun? 17245 | -4/Factory | Found Unknown Device 17245 | -4/Factory | Identified Quantum Capacitor 17310 | -4/Factory | First assault squad dispatched 17330 | -4/Factory | Discovered new exit (range 6) 17420 | -4/Factory | Entered Extension 17463 | -4/Extension | Build established: Scavenger-Mutant 17788 | -4/Extension | Rescued a captive Derelict 17788 | -4/Extension | Rescued a captive Derelict 17823 | -4/Extension | Rescued a captive Derelict 17824 | -4/Extension | Rescued a captive Derelict 17865 | -4/Extension | Rescued a captive Derelict 17875 | -4/Extension | Allied Derelicts emerged from ambush trap array 17888 | -4/Extension | Rescued a captive Derelict 17889 | -4/Extension | Rescued a captive Derelict 17941 | -4/Extension | Spotted B-86 Titan 17949 | -4/Extension | Spotted B-86 Titan 17960 | -4/Extension | Allies destroyed B-86 Titan 17969 | -4/Extension | Allies destroyed B-86 Titan 17998 | -4/Extension | Lost 5 parts (1p1n1u2w) 18000 | -4/Extension | Discovered new exit (range 4) 18249 | -4/Extension | Rescued a captive Derelict 18249 | -4/Extension | Rescued a captive Derelict 18260 | -4/Extension | Build established: Scavenger-Gunner 18306 | -4/Extension | Rescued a captive Derelict 18370 | -4/Extension | Rescued A7 18405 | -4/Extension | Rescued a captive Derelict 18406 | -4/Extension | Rescued a captive Derelict 18499 | -4/Extension | Discovered new exit (range 10) 18500 | -4/Extension | Discovered new exit (range 6) 18595 | -4/Extension | Disrupted transfer network 18790 | -4/Extension | Rescued a captive Derelict 18869 | -4/Extension | Build established: Scavenger-Mutant 19019 | -4/Extension | Entered Cetus 19019 | -4/Cetus | Accompanied by 8 allies (A7) 19024 | -4/Cetus | Acquired a Cetus Manufacturing Module code from A7 19036 | -4/Cetus | Destroyed Cetus Guard 19036 | -4/Cetus | Spotted Cetus Guard 19036 | -4/Cetus | Spotted Cetus Guard 19039 | -4/Cetus | Spotted Cetus Guard 19059 | -4/Cetus | Allies destroyed Cetus Guard 19063 | -4/Cetus | Destroyed Cetus Guard 19069 | -4/Cetus | Destroyed Cetus Guard 19096 | -4/Cetus | Lost 3 parts (1p1n1w) 19150 | -4/Cetus | Discovered new exit (range 15) 19337 | -4/Cetus | Cetus Manufacturing Module disabled 19357 | -4/Cetus | Build established: Scavenger-Gunner 19359 | -4/Cetus | Extracted ID and sensor layout for unrecognized location from A7's data core 19363 | -4/Cetus | Found Prototype Protection 19363 | -4/Cetus | Identified Med. Regenerative Plating 19372 | -4/Cetus | Lost 3 parts (3w) 19498 | -4/Cetus | Failed to start Cetus Manufacturing Module 19625 | -4/Cetus | Destroyed 13 combat bots 19652 | -4/Cetus | Discovered new exit (range 16) 19704 | -4/Cetus | Identified exit to Archives 19706 | -4/Cetus | Entered Archives 19729 | -4/Archives | Met Zhirov 19735 | -4/Archives | Reinforcements dispatched to Archives 19746 | -4/Archives | Read partially decrypted archive contents 19750 | -4/Archives | Discovered new exit (range 15) 19752 | -4/Archives | Enhanced Grunt warped into view, answering call for help 19767 | -4/Archives | Enhanced Grunt warped into view, answering call for help 19780 | -4/Archives | Reinforcements dispatched to Archives 19782 | -4/Archives | Zhirov warped through subspace 19800 | -4/Archives | Zhirov detonated Archives 19822 | -4/Archives | Entered Hub_04(d) 19831 | -4/Hub_04(d) | Lost 7 parts (1p2n1u3w) 20088 | -4/Hub_04(d) | Build established: Scavenger-Mutant 20641 | -4/Hub_04(d) | Garrison activated, responded to threat 21005 | -4/Hub_04(d) | Core integrity fell below 50% 21057 | -4/Hub_04(d) | Found Prototype Processor 21057 | -4/Hub_04(d) | Identified Exp. Signal Interpreter 21101 | -4/Hub_04(d) | First assault squad dispatched 21117 | -4/Hub_04(d) | Incoming assault squad redirected 21263 | -4/Hub_04(d) | Network Hub disabled 21386 | -4/Hub_04(d) | Discovered new exit (range 16) 21440 | -4/Hub_04(d) | Identified exit to Research 21441 | -4/Hub_04(d) | Entered Research 21441 | -3/Research | Evolved 2 slots: Utility x2 21464 | -3/Research | Lost 6 parts (1p2n2u1w) 21869 | -3/Research | Build established: Scavenger-Tank 22093 | -3/Research | Lost 4 parts (1n2u1w) 22182 | -3/Research | Spotted B-86 Titan 22419 | -3/Research | Lost 4 parts (1n1u2w) 22629 | -3/Research | Garrison activated, responded to threat 22866 | -3/Research | Found Quantum Capacitor 22987 | -3/Research | Found Fusion Bomb Launcher 22991 | -3/Research | Found Fusion Bomb Launcher 23101 | -3/Research | Identified exit to Armory 23101 | -3/Research | Identified exit to Quarantine 23116 | -3/Research | Build established: Scavenger-Mutant 23240 | -3/Research | First assault squad dispatched 23492 | -3/Research | Spotted B-86 Titan 23501 | -3/Research | Garrison activated, responded to threat 23537 | -3/Research | Core integrity fell below 50% 23547 | -3/Research | Core integrity fell below 20% 23552 | -3/Research | Destroyed by P-80 Master with Gamma Rifle Last Messages --------------- K-01 Serf collects debris. Adv. Armor Integrity Analyzer destroyed. Dropped Prc. Phase Gun. Dropped Centrium Heavy Treads. Dropped Exp. Power Amplifier. Dropped Lrg. Storage Unit. Dropped Adv. Heat Sink. R-10 Processor collects Wheel. K-01 Serf collects debris. Dropped Particle Reactor. B-86 Titan exits siege mode. P-80 Master resets K-01 Serf, system corruption cleaned. Dropped Adv. Dynamic Insulation System. K-01 Serf collects debris. Acquired Hcp. Storage Unit. Penetrated by Slug. P-80 Master resets P-80 Master, system corruption cleaned. Penetrated by Slug. Slug penetrates Wall. [Achievement: 30k Club] Map ----- +----------------------------------------------------+ | ?????????????????????????????????# | | ????????????????????????????##+### | | ??????????????????????????? | | ??????????????????????????? % | | ???????????????????????? %! |%! = | | ?????????????????????? % [[=!|= *% | | ????????????????????? ^ """ !%! !* | | ????????????????????? """ ########## | | ???????????????????? """ # #^ ^^^ | | ???????????????????# # !! # | | ??????????????????## # !! + | | ????????????????? # ! ] # | | ???????????????? # # | | ???????????????? A # # | | ????????????????"" # + | | ????????????????"" # ### ## | | ?????????????? ?"" # #?# #? | | ????????????? """ = "####"#######=#? | | ???????????? k" " =%* "## #%#? | | ????????????? ! ^! T"## = != ! #=#? | | ???????????? * ! !!! ""## != # #? | | ???????????? g = [ ## " #? | | ??????????? % p p !!*R #########+## #? | | ??????????? p !! #? | | ??????????? ! ####? | | ?????????????# #@######" ?????? | | ?????????????# ##### ????# ??????? | | ????????????????????# ! ???# h ?????? | | ????????????????????#! #?? ??????? | | ????????????????????# #??# ! ??????? | | ????????????????????# ""Y"" +??? BB ??????? | | ????????????????????# """"" #??? BB# ???????? | | ????????????????????# #??? ????????? | | ????????????????????# =#???? ? ??????????? | | ????????????????????###########??????????????????? | | ?????????????????????????????????????????????????? | | ?????????????????????????????????????????????????? | | ?????????????????????????????????????????????????? | | ?????????????????????????????????????????????????? | | ?????????????????????????????????????????????????? | | ?????????????????????????????????????????????????? | | ??????????????????????????>??????????????????????? | | ?????????????????????????????????????????????????? | | ?????????????????????????????????????????????????? | | ?????????????????????????????????????????????????? | | ?????????????????????????????????????????????????? | | ?????????????????????????????????????????????????? | | ?????????????????????????????????????????????????? | | ?????????????????????????????????????????????????? | | ?????????????????????????????????????????????????? | +----------------------------------------------------+ Best States ------------- Heat Dissipation 90 Coolant Potential 100 Energy Generation 45 Energy Capacity 1210 Matter Stores 300 Matter Capacity 300 Sight Range 20 Terrain Scan Density 10 Power Amplification 40 Base Temperature (-) 200 EM Shielding 4 Armor Coverage 600 Resistance: KI 20 Core Shielding 20 Weapon Shielding 90 Weapon Cycling 20 Phase Shifting 10 Evasion (%) 64 Targeting Accuracy 20 Launcher Accuracy 30 Core Analysis 10 Armor Integrity Analysis 66 Recoil Reduction 5 Particle Charging 25 Offensive Hacking 20 Defensive Hacking 14 Item Schematics ----------------- Imp. Assault Rifle | -7/Factory | Scanalyzed Hrd. Medium Armor Plating | -7/Factory | Scanalyzed Imp. Titanium Leg | -7/Factory | Scanalyzed Combat Drone Bay | -7/Data Miner | Free Lgt. Regenerative Plating | -7/Data Miner | Free Exp. Cesium-ion Thruster | -7/Data Miner | Free Triangulator | -7/Data Miner | Free Exp. Transmission Jammer | -7/Data Miner | Free Mni. Smartbomb Launcher | -7/Data Miner | Free Cloaking Device | -7/Data Miner | Free Plasma Sword | -7/Data Miner | Free Enh. Flexi-carbon Leg | -6/Factory | Scanalyzed Cld. Particle Cannon | -6/Factory | Scanalyzed Antimatter Reactor | -6/Factory | Scanalyzed Arc Thrower | -6/Zion | Free Barrage Gun | -6/Zion | Free Hvy. Battle Rifle | -6/Zion | Free Battle Cannon | -6/Zion | Free Flamer | -6/Zion | Free Plasma Flamer | -6/Zion | Free Ripper | -6/Zion | Free Linear Accelerator | -5/Factory | Hacked Phase Gun | -5/Factory | Hacked Adv. Heavy Treads | -5/Factory | Scanalyzed Biometal Leg | -4/Hub_04(d) | Hacked Robot Schematics ------------------ S-27 Virus | -7/Data Miner | Free G-50 Soldier | -7/Data Miner | Free L-41 Fighter | -7/Data Miner | Free H-66 Slayer | -7/Data Miner | Free X-72 Disruptor | -7/Data Miner | Free P-70 Sage | -7/Data Miner | Free I-36 Angel | -7/Data Miner | Free Fabricated ------------ S-27 Virus | x4 | -6/Factory | Preloaded S-27 Virus | x4 | -6/Factory | Preloaded Adv. Heavy Treads | x2 | -5/Factory | Preloaded Antimissile System | x2 | -4/Factory | Preloaded Phase Gun | x2 | -4/Factory Phase Gun | x2 | -4/Factory Alien Tech Used ----------------- None Achievements -------------- 30k Club Preemptive Strike Safety First Treasure Hunter Watch This! Challenges ------------ None Game ------ Seed ReclamationThiefShotgun Manual? 0 Play Time 08:40:09 Cumulative 131.6 hours Start 2022.02.04 @ 00:59:46 End 2022.02.13 @ 02:18:51 Sessions 17 Manual Loads 0 Difficulty Rogue Special Mode None Game No. 33 Rogue 33 Adventurer 0 Explorer 0 Win Type - Total 0 Types 0/0/0/0/0/0/0/0/0 Lore% 45 Gallery% 61 Achievement% 42 Wizard Run 0 Options --------- ASCII 0 Keyboard 0 Movement Mouse Keybinds 0 Fullscreen 2 Font 18/SmallcapsGlow Map View 76x50 Tactical HUD 0 Map Filters NONE Filters NONE Steam 1 RUN: d93cabe8-9e5c-4b46-b47b-e30c3bce5d45